[Event "*** Titled Tuesday Blitz"]
[Site "Chess.com"]
[Date "2020.10.20"]
[Round "6"]
[White "bascheyaro"]
[Black "Smirnov_Pavel"]
[Result "1-0"]
[WhiteElo "2742"]
[BlackElo "2863"]
[TimeControl "180+1"]
[EndTime "11:12:22 PDT"]
[Termination "bascheyaro won on time"]

1. d4 {[%clk 0:03:00.9]} 1... Nf6 {[%clk 0:02:59.4]} 2. Nf3 {[%clk 0:03:00.5]}
2... e6 {[%clk 0:02:59.2]} 3. Bf4 {[%clk 0:03:00.2]} 3... c5 {[%clk 0:02:58.4]}
4. e3 {[%clk 0:03:00.4]} 4... cxd4 {[%clk 0:02:58.3]} 5. exd4 {[%clk 0:03:00.6]}
5... b6 {[%clk 0:02:58.8]} 6. Nc3 {[%clk 0:02:59.9]} 6... Bb7 {[%clk 0:02:52.2]}
7. Nb5 {[%clk 0:02:45.4]} 7... d6 {[%clk 0:02:43.3]} 8. Be2 {[%clk 0:02:42.4]}
8... a6 {[%clk 0:02:40.8]} 9. Na3 {[%clk 0:02:42.1]} 9... Be7 {[%clk 0:02:40.1]}
10. O-O {[%clk 0:02:41.4]} 10... O-O {[%clk 0:02:40.5]} 11. c3 {[%clk
0:02:39.6]} 11... b5 {[%clk 0:02:34.7]} 12. Nc2 {[%clk 0:02:37.8]} 12... Nbd7
{[%clk 0:02:32.9]} 13. a4 {[%clk 0:02:35.4]} 13... Nd5 {[%clk 0:02:25.7]} 14.
Bg3 {[%clk 0:02:35.3]} 14... Bc6 {[%clk 0:02:24.6]} 15. axb5 {[%clk 0:02:32]}
15... axb5 {[%clk 0:02:25.5]} 16. Qd2 {[%clk 0:02:28.6]} 16... Qb6 {[%clk
0:02:14.7]} 17. Ne3 {[%clk 0:02:27.6]} 17... N7f6 {[%clk 0:02:11.4]} 18. Qc2
{[%clk 0:02:10.5]} 18... Ra4 {[%clk 0:02:00.2]} 19. Nxd5 {[%clk 0:01:32.9]}
19... Nxd5 {[%clk 0:02:01.1]} 20. Bd3 {[%clk 0:01:25.2]} 20... h6 {[%clk
0:01:55.1]} 21. Qe2 {[%clk 0:01:21.7]} 21... Rfa8 {[%clk 0:01:46.4]} 22. Rab1
{[%clk 0:01:10]} 22... Ra2 {[%clk 0:01:43]} 23. Nd2 {[%clk 0:01:10.2]} 23... Nf6
{[%clk 0:01:35.2]} 24. Bh4 {[%clk 0:01:05.2]} 24... Qb7 {[%clk 0:01:30.4]} 25.
Bxf6 {[%clk 0:01:02.3]} 25... Bxf6 {[%clk 0:01:31.3]} 26. Be4 {[%clk 0:01:02.6]}
26... Bxe4 {[%clk 0:01:18.5]} 27. Nxe4 {[%clk 0:01:00.4]} 27... Be7 {[%clk
0:01:18]} 28. f4 {[%clk 0:00:53.7]} 28... Qd5 {[%clk 0:01:13]} 29. f5 {[%clk
0:00:47.8]} 29... exf5 {[%clk 0:01:06.7]} 30. Ng3 {[%clk 0:00:47.1]} 30... Qe6
{[%clk 0:00:31.1]} 31. Rbe1 {[%clk 0:00:25.7]} 31... Qxe2 {[%clk 0:00:27.7]} 32.
Rxe2 {[%clk 0:00:26.6]} 32... Bg5 {[%clk 0:00:26.6]} 33. Nxf5 {[%clk 0:00:26.6]}
33... b4 {[%clk 0:00:21.6]} 34. cxb4 {[%clk 0:00:24.9]} 34... Rb8 {[%clk
0:00:18]} 35. Nxd6 {[%clk 0:00:22]} 35... Bf6 {[%clk 0:00:18.2]} 36. Nf5 {[%clk
0:00:20.4]} 36... Rxb4 {[%clk 0:00:17.1]} 37. Nxh6+ {[%clk 0:00:20.6]} 37... Kh7
{[%clk 0:00:14.6]} 38. Nf5 {[%clk 0:00:20.8]} 38... Raxb2 {[%clk 0:00:10.7]} 39.
Rxb2 {[%clk 0:00:20.5]} 39... Rxb2 {[%clk 0:00:11.6]} 40. Rd1 {[%clk 0:00:20.6]}
40... Rb4 {[%clk 0:00:09.7]} 41. d5 {[%clk 0:00:20.7]} 41... g6 {[%clk
0:00:10.1]} 42. Ng3 {[%clk 0:00:20.8]} 42... Bd4+ {[%clk 0:00:07.8]} 43. Kh1
{[%clk 0:00:21]} 43... Bc5 {[%clk 0:00:07.1]} 44. h3 {[%clk 0:00:19.5]} 44... f5
{[%clk 0:00:06.5]} 45. d6 {[%clk 0:00:18.5]} 45... Rb8 {[%clk 0:00:06.2]} 46. d7
{[%clk 0:00:18.5]} 46... Rd8 {[%clk 0:00:06]} 47. Ne2 {[%clk 0:00:19.2]} 47...
Kg7 {[%clk 0:00:04.6]} 48. Nf4 {[%clk 0:00:19.5]} 48... Kf7 {[%clk 0:00:04.3]}
49. Nd3 {[%clk 0:00:15.1]} 49... Bd6 {[%clk 0:00:04.1]} 50. g4 {[%clk
0:00:14.4]} 50... Ke6 {[%clk 0:00:03.8]} 51. Kg2 {[%clk 0:00:14.2]} 51... Rxd7
{[%clk 0:00:03.5]} 52. gxf5+ {[%clk 0:00:14.4]} 52... gxf5 {[%clk 0:00:04.4]}
53. Kf3 {[%clk 0:00:14.9]} 53... Rh7 {[%clk 0:00:04.1]} 54. Re1+ {[%clk
0:00:14.2]} 54... Kf6 {[%clk 0:00:04.5]} 55. Rh1 {[%clk 0:00:14.5]} 55... Rg7
{[%clk 0:00:04.3]} 56. Nf4 {[%clk 0:00:12.5]} 56... Rb7 {[%clk 0:00:03.6]} 57.
Nd5+ {[%clk 0:00:12]} 57... Ke5 {[%clk 0:00:03]} 58. Ne3 {[%clk 0:00:12.2]}
58... Rb3 {[%clk 0:00:03.6]} 59. Ke2 {[%clk 0:00:12.6]} 59... Ke4 {[%clk
0:00:03.5]} 60. Nc4 {[%clk 0:00:11.8]} 60... Bb4 {[%clk 0:00:01.8]} 61. h4
{[%clk 0:00:11.4]} 61... f4 {[%clk 0:00:01.6]} 62. h5 {[%clk 0:00:09.1]} 62...
f3+ {[%clk 0:00:01.5]} 63. Kf2 {[%clk 0:00:09.7]} 63... Bc5+ {[%clk 0:00:02.4]}
64. Kg3 {[%clk 0:00:10]} 64... f2+ {[%clk 0:00:02.3]} 65. Kg2 {[%clk 0:00:10.5]}
65... Rc3 {[%clk 0:00:02.7]} 66. Nd2+ {[%clk 0:00:10.1]} 66... Kf5 {[%clk
0:00:02.8]} 67. h6 {[%clk 0:00:10]} 67... Bd4 {[%clk 0:00:03.3]} 68. h7 {[%clk
0:00:10.2]} 68... Rc8 {[%clk 0:00:03.7]} 69. Nf3 {[%clk 0:00:10.2]} 69... Bf6
{[%clk 0:00:04.2]} 70. Kxf2 {[%clk 0:00:10.1]} 70... Kg6 {[%clk 0:00:04.7]} 71.
Kg3 {[%clk 0:00:10.5]} 71... Rh8 {[%clk 0:00:04.9]} 72. Rg1 {[%clk 0:00:10.2]}
72... Rxh7 {[%clk 0:00:04.7]} 73. Kf4+ {[%clk 0:00:10.8]} 73... Kf7 {[%clk
0:00:04.6]} 74. Rb1 {[%clk 0:00:11.7]} 74... Rh5 {[%clk 0:00:04.8]} 75. Kg4
{[%clk 0:00:11.9]} 75... Kg6 {[%clk 0:00:05.1]} 76. Rb6 {[%clk 0:00:11.9]} 76...
Rd5 {[%clk 0:00:04.8]} 77. Ra6 {[%clk 0:00:12.1]} 77... Rc5 {[%clk 0:00:04.4]}
78. Kf4 {[%clk 0:00:12.6]} 78... Rc4+ {[%clk 0:00:03.8]} 79. Ke3 {[%clk
0:00:13.1]} 79... Kf5 {[%clk 0:00:04.3]} 80. Ra5+ {[%clk 0:00:13.2]} 80... Ke6
{[%clk 0:00:04.2]} 81. Rb5 {[%clk 0:00:13.7]} 81... Kf7 {[%clk 0:00:03.8]} 82.
Nd2 {[%clk 0:00:13.8]} 82... Rc6 {[%clk 0:00:02.4]} 83. Ne4 {[%clk 0:00:14]}
83... Be7 {[%clk 0:00:02.9]} 84. Kf4 {[%clk 0:00:14.3]} 84... Re6 {[%clk
0:00:03.3]} 85. Rb7 {[%clk 0:00:14.4]} 85... Rc6 {[%clk 0:00:03.2]} 86. Ke5
{[%clk 0:00:14.7]} 86... Ke8 {[%clk 0:00:03.7]} 87. Kd5 {[%clk 0:00:14.4]} 87...
Ra6 {[%clk 0:00:03.9]} 88. Nc3 {[%clk 0:00:14.4]} 88... Ra5+ {[%clk 0:00:03.1]}
89. Ke6 {[%clk 0:00:14.8]} 89... Ra6+ {[%clk 0:00:02.1]} 90. Kf5 {[%clk
0:00:15.2]} 90... Rd6 {[%clk 0:00:02.8]} 91. Ne4 {[%clk 0:00:15]} 91... Rd7
{[%clk 0:00:02.7]} 92. Rb8+ {[%clk 0:00:14.9]} 92... Kf7 {[%clk 0:00:03.6]} 93.
Rb6 {[%clk 0:00:15.3]} 93... Rd5+ {[%clk 0:00:03.5]} 94. Kf4 {[%clk 0:00:15.6]}
94... Rd7 {[%clk 0:00:04.4]} 95. Ke5 {[%clk 0:00:14.7]} 95... Rd8 {[%clk
0:00:04.2]} 96. Rh6 {[%clk 0:00:14.4]} 96... Rg8 {[%clk 0:00:04.2]} 97. Rh7+
{[%clk 0:00:14.5]} 97... Rg7 {[%clk 0:00:04.2]} 98. Rh1 {[%clk 0:00:14.6]} 98...
Rg6 {[%clk 0:00:04.5]} 99. Rf1+ {[%clk 0:00:14.8]} 99... Kg7 {[%clk 0:00:04.6]}
100. Kf5 {[%clk 0:00:14.3]} 100... Bf6 {[%clk 0:00:04.6]} 101. Rd1 {[%clk
0:00:11.4]} 101... Be7 {[%clk 0:00:04.5]} 102. Rd7 {[%clk 0:00:11.4]} 102... Kf7
{[%clk 0:00:04.5]} 103. Rb7 {[%clk 0:00:10]} 103... Rg7 {[%clk 0:00:03.4]} 104.
Nc3 {[%clk 0:00:09.9]} 104... Rg6 {[%clk 0:00:02.5]} 105. Nd5 {[%clk 0:00:09.8]}
105... Re6 {[%clk 0:00:03]} 106. Ra7 {[%clk 0:00:09.7]} 106... Re2 {[%clk
0:00:02.8]} 107. Nf4 {[%clk 0:00:09.8]} 107... Re1 {[%clk 0:00:02.6]} 108. Rb7
{[%clk 0:00:09.5]} 108... Rf1 {[%clk 0:00:02.7]} 109. Ke4 {[%clk 0:00:09.6]}
109... Re1+ {[%clk 0:00:02.7]} 110. Kf3 {[%clk 0:00:10.1]} 110... Rf1+ {[%clk
0:00:03]} 111. Ke3 {[%clk 0:00:10.4]} 111... Re1+ {[%clk 0:00:03.1]} 112. Kd3
{[%clk 0:00:10.6]} 112... Re5 {[%clk 0:00:03.2]} 113. Kd4 {[%clk 0:00:10.4]}
113... Rf5 {[%clk 0:00:03]} 114. Nd5 {[%clk 0:00:10.8]} 114... Ke6 {[%clk
0:00:02.8]} 115. Rb6+ {[%clk 0:00:04.9]} 115... Kf7 {[%clk 0:00:02.5]} 116. Ke4
{[%clk 0:00:05.4]} 116... Rh5 {[%clk 0:00:01.7]} 117. Rb7 {[%clk 0:00:05.9]}
117... Ke6 {[%clk 0:00:01.5]} 118. Rxe7+ {[%clk 0:00:02.9]} 1-0

[Event "*** Titled Tuesday Blitz"]
[Site "Chess.com"]
[Date "2020.10.20"]
[Round "7"]
[White "kleopl"]
[Black "barbara25"]
[Result "0-1"]
[WhiteElo "2438"]
[BlackElo "2298"]
[TimeControl "180+1"]
[EndTime "11:14:48 PDT"]
[Termination "barbara25 won by checkmate"]

1. c4 {[%clk 0:03:00.9]} 1... Nf6 {[%clk 0:02:59.6]} 2. Nc3 {[%clk 0:03:00.5]}
2... e6 {[%clk 0:03:00]} 3. Nf3 {[%clk 0:02:59.5]} 3... d5 {[%clk 0:02:59.6]} 4.
cxd5 {[%clk 0:03:00.4]} 4... exd5 {[%clk 0:02:59.4]} 5. d4 {[%clk 0:03:00.7]}
5... c6 {[%clk 0:02:59.9]} 6. Bg5 {[%clk 0:03:00.7]} 6... Be7 {[%clk 0:02:59.9]}
7. e3 {[%clk 0:03:01.2]} 7... O-O {[%clk 0:03:00]} 8. Bd3 {[%clk 0:03:01.4]}
8... Re8 {[%clk 0:03:00.3]} 9. O-O {[%clk 0:03:00.8]} 9... Ne4 {[%clk
0:03:00.4]} 10. Bxe7 {[%clk 0:03:00]} 10... Qxe7 {[%clk 0:03:00]} 11. Rb1 {[%clk
0:03:00.4]} 11... f5 {[%clk 0:02:59.5]} 12. Ne5 {[%clk 0:02:59.7]} 12... Nd7
{[%clk 0:02:59.1]} 13. Nxd7 {[%clk 0:02:58.2]} 13... Bxd7 {[%clk 0:02:58.6]} 14.
Be2 {[%clk 0:02:57.4]} 14... Qd6 {[%clk 0:02:55.9]} 15. Bf3 {[%clk 0:02:56.8]}
15... Re6 {[%clk 0:02:55.3]} 16. g3 {[%clk 0:02:56.8]} 16... Rh6 {[%clk
0:02:54.5]} 17. Bg2 {[%clk 0:02:54.5]} 17... Rf8 {[%clk 0:02:52.4]} 18. Ne2
{[%clk 0:02:53.6]} 18... g5 {[%clk 0:02:52.2]} 19. b4 {[%clk 0:02:53.4]} 19...
Qg6 {[%clk 0:02:49.6]} 20. a4 {[%clk 0:02:19.3]} 20... Qh5 {[%clk 0:02:46]} 21.
h3 {[%clk 0:02:19.3]} 21... f4 {[%clk 0:02:46.3]} 22. g4 {[%clk 0:02:10.7]}
22... Bxg4 {[%clk 0:02:42]} 23. hxg4 {[%clk 0:02:10.2]} 23... Qh2# {[%clk
0:02:41.2]} 0-1

[Event "*** Titled Tuesday Blitz"]
[Site "Chess.com"]
[Date "2020.10.20"]
[Round "7"]
[White "TomiLen"]
[Black "TimofeevAr"]
[Result "1-0"]
[WhiteElo "2620"]
[BlackElo "2775"]
[TimeControl "180+1"]
[EndTime "11:15:01 PDT"]
[Termination "TomiLen won by resignation"]

1. c4 {[%clk 0:03:00.9]} 1... c5 {[%clk 0:02:58.6]} 2. Nf3 {[%clk 0:02:58.4]}
2... Nf6 {[%clk 0:02:58.7]} 3. Nc3 {[%clk 0:02:58.6]} 3... d5 {[%clk 0:02:58.8]}
4. cxd5 {[%clk 0:02:58]} 4... Nxd5 {[%clk 0:02:59.2]} 5. e4 {[%clk 0:02:58]}
5... Nb6 {[%clk 0:02:51.8]} 6. d4 {[%clk 0:02:56.5]} 6... cxd4 {[%clk 0:02:52]}
7. Qxd4 {[%clk 0:02:52.6]} 7... Qxd4 {[%clk 0:02:48.1]} 8. Nxd4 {[%clk
0:02:52.3]} 8... a6 {[%clk 0:02:48.5]} 9. Be3 {[%clk 0:02:45.9]} 9... N8d7
{[%clk 0:02:48.6]} 10. O-O-O {[%clk 0:02:40.7]} 10... e6 {[%clk 0:02:46.2]} 11.
Be2 {[%clk 0:02:36]} 11... Bc5 {[%clk 0:02:45.3]} 12. Nc2 {[%clk 0:02:34.5]}
12... Bxe3+ {[%clk 0:02:44.4]} 13. Nxe3 {[%clk 0:02:35]} 13... Ke7 {[%clk
0:02:44.9]} 14. Rd2 {[%clk 0:02:34.1]} 14... Ne5 {[%clk 0:02:39.5]} 15. Rhd1
{[%clk 0:02:29.7]} 15... g5 {[%clk 0:02:35.8]} 16. g3 {[%clk 0:02:28.1]} 16...
Bd7 {[%clk 0:02:31.6]} 17. f4 {[%clk 0:02:23.5]} 17... gxf4 {[%clk 0:02:31.5]}
18. gxf4 {[%clk 0:02:24.4]} 18... Nc6 {[%clk 0:02:31.6]} 19. Nc4 {[%clk
0:02:18.5]} 1-0

[Event "*** Titled Tuesday Blitz"]
[Site "Chess.com"]
[Date "2020.10.20"]
[Round "7"]
[White "Ermito2020"]
[Black "dpopadic"]
[Result "1-0"]
[WhiteElo "2646"]
[BlackElo "2401"]
[TimeControl "180+1"]
[EndTime "11:15:17 PDT"]
[Termination "Ermito2020 won by resignation"]

1. e4 {[%clk 0:03:00.9]} 1... c5 {[%clk 0:02:59.1]} 2. Nf3 {[%clk 0:03:01.4]}
2... Nc6 {[%clk 0:02:58.4]} 3. d4 {[%clk 0:03:01.6]} 3... cxd4 {[%clk
0:02:58.5]} 4. Nxd4 {[%clk 0:03:02.5]} 4... Nf6 {[%clk 0:02:58.3]} 5. Nc3 {[%clk
0:03:03]} 5... e5 {[%clk 0:02:58.2]} 6. Ndb5 {[%clk 0:03:03.6]} 6... d6 {[%clk
0:02:58.4]} 7. Bg5 {[%clk 0:03:04.2]} 7... a6 {[%clk 0:02:57.7]} 8. Na3 {[%clk
0:03:04.8]} 8... b5 {[%clk 0:02:57.8]} 9. Nd5 {[%clk 0:03:05.5]} 9... Be7 {[%clk
0:02:57.7]} 10. Bxf6 {[%clk 0:03:06.2]} 10... Bxf6 {[%clk 0:02:57.9]} 11. c4
{[%clk 0:03:06.9]} 11... b4 {[%clk 0:02:57.4]} 12. Nc2 {[%clk 0:03:07.3]} 12...
O-O {[%clk 0:02:56.2]} 13. Be2 {[%clk 0:03:07.9]} 13... Rb8 {[%clk 0:02:53.5]}
14. b3 {[%clk 0:03:06.1]} 14... Bg5 {[%clk 0:02:51.5]} 15. O-O {[%clk
0:03:05.7]} 15... a5 {[%clk 0:02:51.7]} 16. Qd3 {[%clk 0:03:06.2]} 16... Be6
{[%clk 0:02:51.3]} 17. Rad1 {[%clk 0:03:05.7]} 17... Qd7 {[%clk 0:02:50.8]} 18.
Qg3 {[%clk 0:02:57.5]} 18... Bd8 {[%clk 0:02:19.8]} 19. c5 {[%clk 0:02:57.3]}
19... Nd4 {[%clk 0:02:16.4]} 20. Nxd4 {[%clk 0:02:54.1]} 20... Bxd5 {[%clk
0:02:13.5]} 21. Nf5 {[%clk 0:02:51.4]} 21... g6 {[%clk 0:02:05.9]} 22. Rxd5
{[%clk 0:02:49.2]} 22... Kh8 {[%clk 0:02:03.6]} 23. Nxd6 {[%clk 0:02:33.2]}
23... Qe7 {[%clk 0:01:55.6]} 24. Qxe5+ {[%clk 0:02:28.9]} 1-0

[Event "*** Titled Tuesday Blitz"]
[Site "Chess.com"]
[Date "2020.10.20"]
[Round "7"]
[White "Walter_White_Poland"]
[Black "lacafi"]
[Result "1-0"]
[WhiteElo "2301"]
[BlackElo "2128"]
[TimeControl "180+1"]
[EndTime "11:15:21 PDT"]
[Termination "Walter_White_Poland won by checkmate"]

1. e4 {[%clk 0:03:00.9]} 1... c6 {[%clk 0:02:59.9]} 2. d4 {[%clk 0:03:00.6]}
2... d5 {[%clk 0:03:00.8]} 3. Nc3 {[%clk 0:03:00.6]} 3... dxe4 {[%clk
0:03:01.7]} 4. Nxe4 {[%clk 0:03:01]} 4... Nf6 {[%clk 0:03:02.6]} 5. Nxf6+ {[%clk
0:03:01.2]} 5... exf6 {[%clk 0:03:03.5]} 6. Bc4 {[%clk 0:03:01.3]} 6... Bd6
{[%clk 0:03:01.7]} 7. Qe2+ {[%clk 0:03:01.3]} 7... Qe7 {[%clk 0:03:01.7]} 8.
Qxe7+ {[%clk 0:02:59.9]} 8... Bxe7 {[%clk 0:03:02.2]} 9. Ne2 {[%clk 0:02:58.8]}
9... O-O {[%clk 0:03:01.7]} 10. Bf4 {[%clk 0:02:58.7]} 10... Bf5 {[%clk
0:02:57.6]} 11. O-O-O {[%clk 0:02:58.3]} 11... Nd7 {[%clk 0:02:56.4]} 12. h3
{[%clk 0:02:57.2]} 12... Nb6 {[%clk 0:02:49.9]} 13. Bb3 {[%clk 0:02:45.8]} 13...
Rad8 {[%clk 0:02:36.8]} 14. Ng3 {[%clk 0:02:44.3]} 14... Bg6 {[%clk 0:02:15.7]}
15. Rhe1 {[%clk 0:02:42.7]} 15... Bd6 {[%clk 0:02:12.7]} 16. Bxd6 {[%clk
0:02:38.1]} 16... Rxd6 {[%clk 0:02:13.2]} 17. Re7 {[%clk 0:02:36.6]} 17... Rd7
{[%clk 0:02:12.8]} 18. Rde1 {[%clk 0:02:30.3]} 18... Rfd8 {[%clk 0:01:44.2]} 19.
Re8+ {[%clk 0:02:26.4]} 19... Rxe8 {[%clk 0:01:39.2]} 20. Rxe8# {[%clk
0:02:27.3]} 1-0

[Event "*** Titled Tuesday Blitz"]
[Site "Chess.com"]
[Date "2020.10.20"]
[Round "7"]
[White "Makswolf200817"]
[Black "AndrewMaco"]
[Result "0-1"]
[WhiteElo "2449"]
[BlackElo "2621"]
[TimeControl "180+1"]
[EndTime "11:15:40 PDT"]
[Termination "AndrewMaco won by resignation"]

1. d4 {[%clk 0:03:00.9]} 1... Nf6 {[%clk 0:02:53.7]} 2. c4 {[%clk 0:02:59.9]}
2... e6 {[%clk 0:02:50.9]} 3. g3 {[%clk 0:02:59.1]} 3... c5 {[%clk 0:02:46.3]}
4. d5 {[%clk 0:02:56]} 4... exd5 {[%clk 0:02:47.2]} 5. cxd5 {[%clk 0:02:56.4]}
5... d6 {[%clk 0:02:46.8]} 6. Nc3 {[%clk 0:02:56]} 6... g6 {[%clk 0:02:46.9]} 7.
Bg2 {[%clk 0:02:55.2]} 7... Bg7 {[%clk 0:02:47.4]} 8. Nf3 {[%clk 0:02:55.4]}
8... O-O {[%clk 0:02:47.9]} 9. O-O {[%clk 0:02:55.7]} 9... a6 {[%clk 0:02:48.3]}
10. a4 {[%clk 0:02:54.1]} 10... Nbd7 {[%clk 0:02:48.8]} 11. Re1 {[%clk
0:02:53.6]} 11... Re8 {[%clk 0:02:47.8]} 12. Bf4 {[%clk 0:02:44.3]} 12... Qe7
{[%clk 0:02:45.5]} 13. a5 {[%clk 0:02:41.8]} 13... h6 {[%clk 0:02:43.5]} 14. h4
{[%clk 0:02:38.3]} 14... Ng4 {[%clk 0:02:43.2]} 15. Nd2 {[%clk 0:02:23.4]} 15...
g5 {[%clk 0:02:26.3]} 16. hxg5 {[%clk 0:02:23]} 16... hxg5 {[%clk 0:02:27.2]}
17. e4 {[%clk 0:02:21.9]} 17... Nxf2 {[%clk 0:02:21.1]} 18. Kxf2 {[%clk
0:02:20.3]} 18... gxf4 {[%clk 0:02:19.5]} 19. Qg4 {[%clk 0:02:06.8]} 19... Nf6
{[%clk 0:02:06.2]} 20. Qxf4 {[%clk 0:02:04.8]} 20... Ng4+ {[%clk 0:02:05.4]} 21.
Kf1 {[%clk 0:02:01.8]} 21... Bh6 {[%clk 0:02:04.6]} 0-1

[Event "*** Titled Tuesday Blitz"]
[Site "Chess.com"]
[Date "2020.10.20"]
[Round "7"]
[White "Kaslask"]
[Black "WiktoriaPOL"]
[Result "1-0"]
[WhiteElo "2298"]
[BlackElo "2066"]
[TimeControl "180+1"]
[EndTime "11:16:07 PDT"]
[Termination "Kaslask won by checkmate"]

1. d4 {[%clk 0:03:00.9]} 1... Nf6 {[%clk 0:02:59.8]} 2. c4 {[%clk 0:03:00.7]}
2... g6 {[%clk 0:02:59.8]} 3. Nc3 {[%clk 0:03:00.4]} 3... Bg7 {[%clk 0:02:59.4]}
4. e4 {[%clk 0:03:00]} 4... d6 {[%clk 0:02:59.4]} 5. Be2 {[%clk 0:03:00]} 5...
O-O {[%clk 0:02:59.3]} 6. Be3 {[%clk 0:02:59.8]} 6... e5 {[%clk 0:02:58.9]} 7.
d5 {[%clk 0:02:59.4]} 7... a5 {[%clk 0:02:58.2]} 8. g4 {[%clk 0:02:59.1]} 8...
Na6 {[%clk 0:02:57.2]} 9. h4 {[%clk 0:02:58.9]} 9... Nc5 {[%clk 0:02:56]} 10. f3
{[%clk 0:02:58.8]} 10... Nfd7 {[%clk 0:02:55.2]} 11. h5 {[%clk 0:02:56.9]} 11...
f5 {[%clk 0:02:50.3]} 12. hxg6 {[%clk 0:02:56.6]} 12... hxg6 {[%clk 0:02:51.2]}
13. gxf5 {[%clk 0:02:56.5]} 13... gxf5 {[%clk 0:02:52.1]} 14. exf5 {[%clk
0:02:36.8]} 14... Rxf5 {[%clk 0:02:53]} 15. Bd3 {[%clk 0:02:22.5]} 15... Nxd3+
{[%clk 0:02:51]} 16. Qxd3 {[%clk 0:02:22.5]} 16... Nc5 {[%clk 0:02:46.2]} 17.
Bxc5 {[%clk 0:02:21.9]} 17... dxc5 {[%clk 0:02:46]} 18. O-O-O {[%clk 0:02:21.3]}
18... Qg5+ {[%clk 0:02:44.5]} 19. Kb1 {[%clk 0:02:17.2]} 19... Rf4 {[%clk
0:02:44.6]} 20. Ka1 {[%clk 0:02:12.2]} 20... Rd4 {[%clk 0:02:43]} 21. Qe2 {[%clk
0:02:08.3]} 21... Rxd1+ {[%clk 0:02:41.7]} 22. Qxd1 {[%clk 0:02:05.8]} 22... Qg2
{[%clk 0:02:41]} 23. Nge2 {[%clk 0:02:01.8]} 23... a4 {[%clk 0:02:37.2]} 24. d6
{[%clk 0:01:57.9]} 24... cxd6 {[%clk 0:02:36.3]} 25. Qd5+ {[%clk 0:01:56]} 25...
Kf8 {[%clk 0:02:34.3]} 26. Qxd6+ {[%clk 0:01:53]} 26... Kf7 {[%clk 0:02:30.6]}
27. Qc7+ {[%clk 0:01:48.4]} 27... Kf8 {[%clk 0:02:27.6]} 28. Rg1 {[%clk
0:01:47.3]} 28... Qxf3 {[%clk 0:02:21.9]} 29. Qxg7+ {[%clk 0:01:43.6]} 29... Ke8
{[%clk 0:02:21.8]} 30. Qxe5+ {[%clk 0:01:42]} 30... Kd8 {[%clk 0:02:19.4]} 31.
Rg8+ {[%clk 0:01:39.9]} 31... Kd7 {[%clk 0:02:19.2]} 32. Rg7+ {[%clk 0:01:37.3]}
32... Kd8 {[%clk 0:02:18.3]} 33. Qc7+ {[%clk 0:01:35.9]} 33... Ke8 {[%clk
0:02:18]} 34. Qe7# {[%clk 0:01:35.4]} 1-0

[Event "*** Titled Tuesday Blitz"]
[Site "Chess.com"]
[Date "2020.10.20"]
[Round "7"]
[White "Vyacheslav_N"]
[Black "Yoshikrov"]
[Result "0-1"]
[WhiteElo "2337"]
[BlackElo "2143"]
[TimeControl "180+1"]
[EndTime "11:16:09 PDT"]
[Termination "Yoshikrov won by checkmate"]

1. e4 {[%clk 0:03:00.9]} 1... c5 {[%clk 0:02:57.7]} 2. Nf3 {[%clk 0:03:00.8]}
2... d6 {[%clk 0:02:55.4]} 3. d4 {[%clk 0:03:01.1]} 3... cxd4 {[%clk 0:02:55.3]}
4. Nxd4 {[%clk 0:03:02]} 4... Nf6 {[%clk 0:02:54.1]} 5. f3 {[%clk 0:03:01.1]}
5... e5 {[%clk 0:02:52.7]} 6. Nb3 {[%clk 0:03:00.9]} 6... Be6 {[%clk 0:02:52.8]}
7. c4 {[%clk 0:03:01.3]} 7... Nbd7 {[%clk 0:02:48.3]} 8. Nc3 {[%clk 0:03:01.6]}
8... Be7 {[%clk 0:02:48.7]} 9. Nd5 {[%clk 0:03:01.9]} 9... Bxd5 {[%clk
0:02:44.9]} 10. cxd5 {[%clk 0:03:02.8]} 10... O-O {[%clk 0:02:43.9]} 11. Be3
{[%clk 0:03:03]} 11... Ne8 {[%clk 0:02:42.1]} 12. Qd2 {[%clk 0:03:03.1]} 12...
f5 {[%clk 0:02:42]} 13. Bd3 {[%clk 0:03:01.9]} 13... fxe4 {[%clk 0:02:41.7]} 14.
fxe4 {[%clk 0:03:02.8]} 14... Nef6 {[%clk 0:02:35.6]} 15. h3 {[%clk 0:03:02.2]}
15... Nh5 {[%clk 0:02:33.1]} 16. O-O-O {[%clk 0:02:55.4]} 16... Rc8+ {[%clk
0:02:25.1]} 17. Bc2 {[%clk 0:02:54]} 17... Ng3 {[%clk 0:02:19.3]} 18. Rhg1
{[%clk 0:02:49.6]} 18... Nxe4 {[%clk 0:02:18.9]} 19. Qd3 {[%clk 0:02:46.3]}
19... Nef6 {[%clk 0:01:53.8]} 20. Kb1 {[%clk 0:02:42.2]} 20... e4 {[%clk
0:01:52.7]} 21. Qe2 {[%clk 0:02:40]} 21... Nb6 {[%clk 0:01:47.9]} 22. Bxb6
{[%clk 0:02:37.9]} 22... Qxb6 {[%clk 0:01:45.7]} 23. Bxe4 {[%clk 0:02:38.8]}
23... Nxe4 {[%clk 0:01:45.4]} 24. Qxe4 {[%clk 0:02:39.7]} 24... Bf6 {[%clk
0:01:45.8]} 25. Qe6+ {[%clk 0:02:38.2]} 25... Kh8 {[%clk 0:01:45.3]} 26. Rge1
{[%clk 0:02:39.1]} 26... h6 {[%clk 0:01:43.1]} 27. Qe3 {[%clk 0:02:31.5]} 27...
Qa6 {[%clk 0:01:38.4]} 28. Nd4 {[%clk 0:02:22.8]} 28... Qa4 {[%clk 0:01:28.6]}
29. Ne6 {[%clk 0:02:19.9]} 29... Qc2+ {[%clk 0:01:28.5]} 30. Ka1 {[%clk
0:02:19.1]} 30... Qxb2# {[%clk 0:01:28.6]} 0-1

[Event "*** Titled Tuesday Blitz"]
[Site "Chess.com"]
[Date "2020.10.20"]
[Round "7"]
[White "Carnivoras"]
[Black "barriochess"]
[Result "1-0"]
[WhiteElo "2639"]
[BlackElo "2307"]
[TimeControl "180+1"]
[EndTime "11:16:14 PDT"]
[Termination "Carnivoras won by resignation"]

1. d4 {[%clk 0:03:00.9]} 1... Nf6 {[%clk 0:02:58.9]} 2. c4 {[%clk 0:02:59.8]}
2... c5 {[%clk 0:02:58.5]} 3. d5 {[%clk 0:03:00]} 3... d6 {[%clk 0:02:58.9]} 4.
Nc3 {[%clk 0:02:59.9]} 4... g6 {[%clk 0:02:59.3]} 5. e4 {[%clk 0:03:00]} 5...
Bg7 {[%clk 0:02:59.6]} 6. Nf3 {[%clk 0:02:52.8]} 6... O-O {[%clk 0:02:59.5]} 7.
Bd3 {[%clk 0:02:52.7]} 7... e6 {[%clk 0:02:59.3]} 8. O-O {[%clk 0:02:52]} 8...
exd5 {[%clk 0:02:59.3]} 9. exd5 {[%clk 0:02:52.2]} 9... Na6 {[%clk 0:02:55.2]}
10. h3 {[%clk 0:02:49.2]} 10... Nc7 {[%clk 0:02:54.6]} 11. Bf4 {[%clk
0:02:48.3]} 11... Nh5 {[%clk 0:02:48.4]} 12. Bg5 {[%clk 0:02:47.4]} 12... Bf6
{[%clk 0:02:47.6]} 13. Bh6 {[%clk 0:02:46.8]} 13... Bg7 {[%clk 0:02:47.6]} 14.
Qd2 {[%clk 0:02:46.3]} 14... Bxh6 {[%clk 0:02:37.6]} 15. Qxh6 {[%clk 0:02:45.3]}
15... Qf6 {[%clk 0:02:37.9]} 16. Rfe1 {[%clk 0:02:36]} 16... Qg7 {[%clk
0:02:35.7]} 17. Qxg7+ {[%clk 0:02:31.2]} 17... Kxg7 {[%clk 0:02:31.5]} 18. Re7
{[%clk 0:02:30.6]} 18... Ne8 {[%clk 0:02:26.7]} 19. Rae1 {[%clk 0:02:29.5]}
19... Nef6 {[%clk 0:02:15.8]} 20. Nb5 {[%clk 0:02:25.8]} 20... Rd8 {[%clk
0:02:14.1]} 21. Ng5 {[%clk 0:02:24.5]} 21... Nf4 {[%clk 0:01:51.6]} 22. Bf1
{[%clk 0:02:21.7]} 22... h6 {[%clk 0:01:17.8]} 23. Nxf7 {[%clk 0:02:10.5]} 1-0